Workbook

Sheet Key data
B1: Key data | J1: Instructions for the financing recipient: Please start by entering the key data before proceeding to the ‘Financing budget” tab. Please only enter information in the blue cells. All other cells will be calculated automatically.
B3: Name of the recipient: | H3: =IF(C3="Bitte eintragen","- Bitte den Namen Ihres Vereins im Feld <Name des Zuschussempfängers> eintragen; "," ") -> 
B5: Is this the first budget or is an existing contract being modified? | C5: Select | F5: =IF(C5="Modification to a contract","How many times has the contract been modified?:","") ->  | G5: Only select for modifications to a contract | H5: =IF(C5="Vertragsanpassung",1,0) -> 0
B6: Project title | H6: =IF(C6="Veranstaltung",1,IF(C6="Projekt",1,0)) -> 0
B7: Do you require administration costs? | C7: Select | D7: Please enter the administration costs as a percentage | H7: =IF(C7="Ja, anderer Betrag",1,0) -> 0
B8: Are you providing a (financial) contribution of your own? | C8: Select | D8: Amount in EUR | H8: =IF(C8="Ja, anderer Betrag",1,0) -> 0
B9: How many donors will be co-financing the project (in addition to GIZ)? | C9: Select | D9: Name of the provider of third-party funding | F9: Amount of third-party funding in EUR
D10: Name of the provider of third-party funding | F10: Amount of third-party funding in EUR | H10: =IF(C10="Ja",1,0) -> 0
D11: Name of the provider of third-party funding | F11: Amount of third-party funding in EUR | H11: =IF(C11="Ja",1,0) -> 0
D12: Name of the provider of third-party funding | F12: Amount of third-party funding in EUR
D13: Name of the provider of third-party funding | F13: Amount of third-party funding in EUR
D14: Name of the provider of third-party funding | F14: Amount of third-party funding in EUR
D15: Name of the provider of third-party funding | F15: Amount of third-party funding in EUR
B16: Will funds be forwarded to third-party recipients? (Please note, this does not relate to services) | C16: Select | D16: This refers to third-party recipients that independently implement part of the recipient's project. A separate budget must be submitted and a commercial and legal eligibility check carried out by the GIZ project (needed criteria: legal entity and public-benefit nature).
B17: Will medicines and/or pesticides and mineral fertilizers be procured? | C17: Select | D17: A separate internal GIZ approval process is needed.
B18: Will materials and equipment worth more than EUR 1,000,000 be procured or is more than 50% of the contract value earmarked for the procurement of materials and equipment for a contract worth at least EUR 400,000? | C18: Select | D18: A separate internal GIZ approval process is needed
B19: Are construction measures being financed? | C19: Select | D19: A separate internal GIZ approval process is needed.
B20: Are tooltips to be displayed in the budget? ‘Yes’ recommended for filling out the form ‘No’ recommended for a better overview | C20: Select
B22: Date of budget finalisation:

Sheet Financing budget
A1: =IF('Key data'!C3="","Please fill out the 'Key data' tab first (see below)",CONCATENATE("Estimated Budget - Annex 1",CHAR(10),'Key data'!C3," - ",'Key data'!C6,"",'Key data'!E6,"",IF(L4="VE",CONCATENATE(" - ",'Key data'!G5,"SUPPLEMENT TO THE CONTRACT",""),""))) -> Please fill out the 'Key data' tab first (see below) | J1: ='Key data'!C22 -> 00:00:00 | N1: no change | O1: Instructions: Please fill out the key data sheet before proceeding to the 'Financing budget’ tab. On this ‘Financing budget’ tab, please only enter information in the blue cells. All other cells will be calculated automatically.
N2: change
B3: Description | C3: Code | D3: Quantity | E3: Unit (e.g. person, vehicle, room) | F3: Quantity | G3: Unit (e.g. months, days, courses) | H3: Eligible for support up to in EUR (price per unit) | I3: Total GIZ funding in EUR (up to) | J3: Own contributions/third-party financing in EUR (up to) | L3: =IF($L$4="VE",CONCATENATE("For contract modifications:",CHAR(10),"Has this budget line changed?"),"") ->  | O3: General information: This budget format is used as a basis for settlement. You may create additional files with more detailed information for your own internal use. All items listed in the budget must be included in the project description to ensure that the project reference is clear. The table contains formulas that must be retained. Please keep the two-decimal-place format. We advise rounding up units to the nearest full unit. Costs are agreed at a value of ‘up to’.
B4: =IF('Key data'!C20="yes",CONCATENATE("Note: Blue fields to be filled in by ",IF('Key data'!C3="","the recipient",'Key data'!C3)),"") ->  | I4: =IF('Key data'!C20="yes"," Note: calculated automatically","") ->  | L4: =IF('Key data'!C5="Modification to a contract","VE","NOVE") -> NOVE
A5: 1 | B5: Staff - prime cost for employees of the Recipient (job title) (Note 1: Only staff from your organisation; the evidence for this budget line must be provided in the form of payslips or, in the case of partial financing, in the form of payslips and time sheets. Note 2: Only direct costs for staff (gross cost for the employer) may be settled. Add-ons such as staff overheads that are calculated pro-rata for staff are not eligible for support) | D5: =IF('Key data'!C20="yes",CONCATENATE("Tooltip:",Example!O5),"") ->  | I5: =SUM(I6:I42) -> 0.00 | J5: GIZ is unable to provide pro-rata financing for any of the budget lines (with the exception of staff costs (item 1) which can be covered on a percentage basis, or costs that fall under the cost category ‘Pro-rata local project costs’ (item 7)). Costs that are incurred as part of the implementation of the project but are not funded by GIZ are calculated separately - either as own contribution or, if applicable, as financial contribution of a third party. | L5: =IF(L4="VE","PLEASE NOTE: GIZ cannot cover any costs that arise as a result of currency fluctuations.","") -> 
E6: people | G6: months | I6: =ROUND(D6*F6*H6,2) -> 0.00 | L6: No change
E7: people | G7: months | I7: =ROUND(D7*F7*H7,2) -> 0.00 | L7: No change
E8: people | G8: months | I8: 0.00 | L8: No change
E9: people | G9: months | I9: 0.00 | L9: No change
E10: people | G10: months | I10: 0.00 | L10: No change
E11: people | G11: months | I11: 0.00 | L11: No change
E12: people | G12: months | I12: 0.00 | L12: No change
E13: people | G13: months | I13: 0.00 | L13: No change
E14: people | G14: months | I14: =ROUND(D14*F14*H14,2) -> 0.00 | L14: No change
E15: people | G15: months | I15: 0.00 | L15: No change
E16: people | G16: months | I16: 0.00 | L16: No change
E17: people | G17: months | I17: 0.00 | L17: No change
E18: people | G18: months | I18: 0.00 | L18: No change
E19: people | G19: months | I19: 0.00 | L19: No change
E20: people | G20: months | I20: 0.00 | L20: No change
E21: people | G21: months | I21: 0.00 | L21: No change
E22: people | G22: months | I22: 0.00 | L22: No change
E23: people | G23: months | I23: 0.00 | L23: No change
E24: people | G24: months | I24: 0.00 | L24: No change
E25: people | G25: months | I25: 0.00 | L25: No change
E26: people | G26: months | I26: 0.00 | L26: No change
E27: people | G27: months | I27: 0.00 | L27: No change
E28: people | G28: months | I28: 0.00 | L28: No change
E29: people | G29: months | I29: 0.00 | L29: No change
E30: people | G30: months | I30: 0.00 | L30: No change
E31: people | G31: months | I31: 0.00 | L31: No change
E32: people | G32: months | I32: 0.00 | L32: No change
E33: people | G33: months | I33: 0.00 | L33: No change
E34: people | G34: months | I34: 0.00 | L34: No change
E35: people | G35: months | I35: =ROUND(D35*F35*H35,2) -> 0.00 | L35: No change
E36: people | G36: months | I36: 0.00 | L36: No change
E37: people | G37: months | I37: 0.00 | L37: No change
E38: people | G38: months | I38: 0.00 | L38: No change
E39: people | G39: months | I39: 0.00 | L39: No change
E40: people | G40: months | I40: 0.00 | L40: No change
E41: people | G41: months | I41: 0.00 | L41: No change
E42: people | G42: months | I42: 0.00 | L42: No change
A43: 2 | B43: External services (type/content of service) | D43: =IF('Key data'!C20="yes",CONCATENATE("Tooltip:",Example!O11),"") ->  | I43: =SUM(I44:I72) -> 0.00 | L43: No change
E44: Contract | I44: =ROUND(D44*H44,2) -> 0.00 | L44: No change
E45: Contract | I45: =ROUND(D45*H45,2) -> 0.00 | L45: No change
E46: Contract | I46: 0.00 | L46: No change
E47: Contract | I47: 0.00 | L47: No change
E48: Contract | I48: 0.00 | L48: No change
E49: Contract | I49: 0.00 | L49: No change
E50: Contract | I50: 0.00 | L50: No change
E51: Contract | I51: =ROUND(D51*H51,2) -> 0.00 | L51: No change
E52: Contract | I52: 0.00 | L52: No change
E53: Contract | I53: 0.00 | L53: No change
E54: Contract | I54: 0.00 | L54: No change
E55: Contract | I55: 0.00 | L55: No change
E56: Contract | I56: 0.00 | L56: No change
E57: Contract | I57: 0.00 | L57: No change
E58: Contract | I58: 0.00 | L58: No change
E59: Contract | I59: 0.00 | L59: No change
E60: Contract | I60: 0.00 | L60: No change
E61: Contract | I61: 0.00 | L61: No change
E62: Contract | I62: 0.00 | L62: No change
E63: Contract | I63: 0.00 | L63: No change
E64: Contract | I64: 0.00 | L64: No change
E65: Contract | I65: 0.00 | L65: No change
E66: Contract | I66: 0.00 | L66: No change
E67: Contract | I67: 0.00 | L67: No change
E68: Contract | I68: 0.00 | L68: No change
E69: Contract | I69: 0.00 | L69: No change
E70: Contract | I70: 0.00 | L70: No change
E71: Contract | I71: 0.00 | L71: No change
E72: Contract | I72: 0.00 | L72: No change
A73: 3 | B73: Transportation/travel costs | D73: =IF('Key data'!C20="yes",CONCATENATE("Tooltip:",Example!O22),"") ->  | I73: =SUM(I74:I91) -> 0.00 | L73: No change
I74: =ROUND(D74*H74,2) -> 0.00 | L74: No change
I75: =ROUND(D75*H75,2) -> 0.00 | L75: No change
I76: 0.00 | L76: No change
I77: 0.00 | L77: No change
I78: 0.00 | L78: No change
I79: 0.00 | L79: No change
I80: 0.00 | L80: No change
I81: 0.00 | L81: No change
I82: 0.00 | L82: No change
I83: 0.00 | L83: No change
I84: 0.00 | L84: No change
I85: 0.00 | L85: No change
I86: 0.00 | L86: No change
I87: 0.00 | L87: No change
I88: 0.00 | L88: No change
I89: 0.00 | L89: No change
I90: 0.00 | L90: No change
I91: 0.00 | L91: No change
A92: 4 | B92: Procurement of materials and equipment | D92: =IF('Key data'!C20="yes",CONCATENATE("Tooltip:",Example!O34),"") ->  | I92: =SUM(I93:I108) -> 0.00 | L92: No change
I93: =ROUND(D93*H93,2) -> 0.00 | L93: No change
I94: =ROUND(D94*H94,2) -> 0.00 | L94: No change
I95: 0.00 | L95: No change
I96: 0.00 | L96: No change
I97: =ROUND(D97*H97,2) -> 0.00 | L97: No change
I98: 0.00 | L98: No change
I99: 0.00 | L99: No change
I100: 0.00 | L100: No change
I101: 0.00 | L101: No change
I102: 0.00 | L102: No change
I103: 0.00 | L103: No change
I104: 0.00 | L104: No change
I105: 0.00 | L105: No change
I106: 0.00 | L106: No change
I107: 0.00 | L107: No change
I108: 0.00 | L108: No change
A109: 5 | B109: Other costs/consumables | D109: =IF('Key data'!C20="yes",CONCATENATE("Tooltip:",Example!O45),"") ->  | I109: =SUM(I110:I125) -> 0.00 | L109: No change
I110: =ROUND(D110*H110,2) -> 0.00 | L110: No change
I111: =ROUND(D111*H111,2) -> 0.00 | L111: No change
I112: =ROUND(D112*H112,2) -> 0.00 | L112: No change
I113: 0.00 | L113: No change
I114: =ROUND(D114*H114,2) -> 0.00 | L114: No change
I115: 0.00 | L115: No change
I116: 0.00 | L116: No change
I117: 0.00 | L117: No change
I118: 0.00 | L118: No change
I119: 0.00 | L119: No change
I120: 0.00 | L120: No change
I121: 0.00 | L121: No change
I122: 0.00 | L122: No change
I123: 0.00 | L123: No change
I124: 0.00 | L124: No change
I125: 0.00 | L125: No change
A126: 6 | B126: Funds for direct support of third-party beneficiaries (Note: This budget line should preferably cover in-kind contributions, i.e. contribution of materials and equipment, to third-party beneficiaries. In the case of financial contributions, proof of payment has to be regulated. The selection process for the third-party beneficiaries has to be described in the project description.) | D126: =IF('Key data'!C20="yes",CONCATENATE("Tooltip:",Example!O56),"") ->  | I126: =SUM(I127:I136) -> 0.00
I127: =ROUND(D127*F127*H127,2) -> 0.00 | L127: No change
I128: =ROUND(D128*F128*H128,2) -> 0.00 | L128: No change
I129: =ROUND(D129*F129*H129,2) -> 0.00 | L129: No change
I130: 0.00 | L130: No change
I131: 0.00 | L131: No change
I132: 0.00 | L132: No change
I133: 0.00 | L133: No change
I134: 0.00 | L134: No change
I135: 0.00 | L135: No change
I136: 0.00 | L136: No change
A137: 7 | B137: Pro-rata local project costs (e.g. IT, research) | D137: =IF('Key data'!C20="yes",CONCATENATE("Tooltip:",Example!O61),"") ->  | I137: =SUM(I138:I142) -> 0.00
I138: =ROUND(D138*F138*H138,2) -> 0.00 | L138: No change
I139: =ROUND(D139*F139*H139,2) -> 0.00 | L139: No change
I140: 0.00 | L140: No change
I141: 0.00 | L141: No change
I142: 0.00 | L142: No change
B143: Subtotal – direct costs | I143: =I109+I92+I43+I5+I73+I126+I137 -> 0.00
A144: 8 | B144: Administration costs | D144: =IF('Key data'!C20="yes",CONCATENATE("Tooltip:",Example!O65),"") ->  | I144: =I145 -> 0.00
B145: Administration costs (on budget lines 1 - 7) | D145: ='Key data'!E7 -> 0% | H145: =I143 -> 0.00 | I145: =ROUND(D145*H145,2) -> 0.00 | L145: No change
B146: Subtotal – Funding by GIZ (up to – upon provision of evidence)* (direct costs + administration costs) | I146: =I143+I144 -> 0.00
A147: 9 | B147: Forwarding of funds to third-party recipients – a detailed budget must be provided – | D147: =IF('Key data'!C20="yes",CONCATENATE("Tooltip:",Example!O68),"") ->  | I147: =SUM(I148:I153) -> 0.00
B148: XYZ (name of the third-party recipient) | D148: 1 | E148: Unit | F148: 1 | G148: Forwarding of funds | H148: ='Forwarding of funds'!I147 -> 0.00 | I148: =D148*F148*H148 -> 0.00 € | L148: No change
B149: XYZ (name of the third-party recipient) | D149: 1 | E149: Unit | F149: 1 | G149: Forwarding of funds | H149: 0.00 | I149: =D149*F149*H149 -> 0.00 € | L149: No change
B150: XYZ (name of the third-party recipient) | D150: 1 | E150: Unit | F150: 1 | G150: Forwarding of funds | H150: 0.00 | I150: =D150*F150*H150 -> 0.00 € | L150: No change
B151: XYZ (name of the third-party recipient) | D151: 1 | E151: Unit | F151: 1 | G151: Forwarding of funds | H151: 0.00 | I151: 0.00 € | L151: No change
B152: XYZ (name of the third-party recipient) | D152: 1 | E152: Unit | F152: 1 | G152: Forwarding of funds | H152: 0.00 | I152: 0.00 € | L152: No change
B153: XYZ (name of the third-party recipient) | D153: 1 | E153: Unit | F153: 1 | G153: Forwarding of funds | H153: 0.00 | I153: 0.00 € | K153: Funds in % | L153: No change
B154: GIZ funding (up to – upon provision of evidence)* | I154: =I146+I147 -> 0.00 € | K154: =IFERROR(I154/$I$164,"") -> 
A155: 10 | B155: Own Contributions/third-party financing | D155: =IF('Key data'!C20="yes",CONCATENATE("Tooltip:",Example!O73),"") ->  | J155: =SUM(J156:J163) -> 0.00
B156: =_xlfn.IFS('Key data'!C8="no","no own contibution",'Key data'!C8="yes",'Key data'!C3,'Key data'!C8="Select", "Please ensure that you have entered all necessary information in the 'key data' worksheet",TRUE,"") -> Please ensure that you have entered all necessary information in the 'key data' worksheet | D156: 1 | E156: Unit | F156: 1 | G156: Contribution | H156: =IF('Key data'!C8="yes",'Key data'!E8,"") ->  | J156: =H156 ->  | K156: =IFERROR(J156/$I$164,"") ->  | L156: No change
B157: =_xlfn.IFS('Key data'!C9=0,"No third-party financing",'Key data'!C9= "Select", "Please ensure that you have entered all necessary information in the 'key data' worksheet",'Key data'!C9>0,'Key data'!E9,TRUE,"") -> Please ensure that you have entered all necessary information in the 'key data' worksheet | D157: 1 | E157: Unit | F157: 1 | G157: Contribution | H157: =_xlfn.IFS('Key data'!$C$9="Select", "",'Key data'!$C$9>0,'Key data'!G9, TRUE,"") ->  | K157: =IFERROR(J157/$I$164,"") ->  | L157: No change
B158: =_xlfn.IFS('Key data'!C9=0,"No third-party financing",'Key data'!C9= "Select", "Please ensure that you have entered all necessary information in the 'key data' worksheet",'Key data'!C9>0,'Key data'!E10,TRUE,"") -> Please ensure that you have entered all necessary information in the 'key data' worksheet | D158: 1 | E158: Unit | F158: 1 | G158: Contribution | H158: =_xlfn.IFS('Key data'!$C$9="Select", "",'Key data'!$C$9>0,'Key data'!G10, TRUE,"") ->  | L158: No change
B159: =_xlfn.IFS('Key data'!C9=0,"No third-party financing",'Key data'!C9= "Select", "Please ensure that you have entered all necessary information in the 'key data' worksheet",'Key data'!C9>0,'Key data'!E11,TRUE,"") -> Please ensure that you have entered all necessary information in the 'key data' worksheet | D159: 1 | E159: Unit | F159: 1 | G159: Contribution | H159: =_xlfn.IFS('Key data'!$C$9="Select", "",'Key data'!$C$9>0,'Key data'!G11, TRUE,"") ->  | L159: No change
B160: =_xlfn.IFS('Key data'!C9=0,"No third-party financing",'Key data'!C9= "Select","Please ensure that you have entered all necessary information in the 'key data' worksheet",'Key data'!C9>0,'Key data'!E12,TRUE,"") -> Please ensure that you have entered all necessary information in the 'key data' worksheet | D160: 1 | E160: Unit | F160: 1 | G160: Contribution | H160: =_xlfn.IFS('Key data'!$C$9="Select", "",'Key data'!$C$9>0,'Key data'!G12, TRUE,"") ->  | L160: No change
B161: =_xlfn.IFS('Key data'!C9=0,"No third-party financing",'Key data'!C9= "Select", "Please ensure that you have entered all necessary information in the 'key data' worksheet",'Key data'!C9>0,'Key data'!E13,TRUE,"") -> Please ensure that you have entered all necessary information in the 'key data' worksheet | D161: 1 | E161: Unit | F161: 1 | G161: Contribution | H161: =_xlfn.IFS('Key data'!$C$9="Select", "",'Key data'!$C$9>0,'Key data'!G13, TRUE,"") ->  | L161: No change
B162: =_xlfn.IFS('Key data'!C9=0,"No third-party financing",'Key data'!C9= "Select","Please ensure that you have entered all necessary information in the 'key data' worksheet",'Key data'!C9>0,'Key data'!E14,TRUE,"") -> Please ensure that you have entered all necessary information in the 'key data' worksheet | D162: 1 | E162: Unit | F162: 1 | G162: Contribution | H162: =_xlfn.IFS('Key data'!$C$9="Select", "",'Key data'!$C$9>0,'Key data'!G14, TRUE,"") ->  | L162: No change
B163: =_xlfn.IFS('Key data'!C9=0,"No third-party financing",'Key data'!C9= "Select","Please ensure that you have entered all necessary information in the 'key data' worksheet",'Key data'!C9>0,'Key data'!E15,TRUE,"") -> Please ensure that you have entered all necessary information in the 'key data' worksheet | D163: 1 | E163: Unit | F163: 1 | G163: Contribution | H163: =_xlfn.IFS('Key data'!$C$9="Select", "",'Key data'!$C$9>0,'Key data'!G15, TRUE,"") ->  | J163: =H163 ->  | K163: =IFERROR(J163/$I$164,"") ->  | L163: No change
B164: Total funding | I164: =I154+J155 -> 0.00 € | K164: =SUM(K154:K163) -> 0%
B166: *All budget lines (with the exception of administration costs and pro-rata local project costs) are settled upon provision of evidence.
B168: Please note: In cases where GIZ funding is to be provided for the award of contracts for external services and/or materials and equipment and/or goods, the relevant procurement guidelines must be observed in accordance with the contractual provisions.
B170: No income may be generated from the funds provided! For example, where the recipient provides rooms for training, etc., the costs may not be settled under this contract.
B172: For contract supplements: Please adjust the budget based on the most recently agreed budget and highlight any changes in a different colour. GIZ cannot bear costs that arise as a result of currency fluctuations.

Sheet Forwarding of funds
B1: Estimated Budget- Annex 1 | D1: Name of the third-party recipient: | J1: ='Key data'!C22 -> 00:00:00 | N1: no change
N2: change
B3: Description | C3: Code | D3: Quantity | E3: Unit (e.g. person, vehicle, room) | F3: Quantity | G3: Unit (e.g. months, days, courses) | H3: Eligible for support up to in EUR (price per unit) | I3: Total GIZ funding in EUR (up to) | J3: Own contributions/third-party financing in EUR (up to) | L3: =IF($L$4="VE",CONCATENATE("For contract modifications:",CHAR(10),"Has this budget line changed?"),"") -> 
B4: =IF('Key data'!C20="yes","Note: Blue fields to be filled in by the third-party recipient","") ->  | I4: =IF('Key data'!C20="yes"," Note: calculated automatically","") ->  | L4: =IF('Key data'!C5="Modification to a contract","VE","NOVE") -> NOVE
A5: 1 | B5: Staff - prime cost for employees of the Recipient (job title) (Note 1: Only staff from your organisations; the evidence for this budget line must be provided in the form of payslips or, in the case of partial financing, in the form of payslips and time sheets. Note 2: Only direct costs for staff (gross cost for the employer) may be settled. Add-ons such as staff overheads that are calculated pro-rata for staff are not eligible for support) | D5: =IF('Key data'!C20="yes",CONCATENATE("Tooltip:",Example!O5),"") ->  | I5: =SUM(I6:I42) -> 0.00 | J5: GIZ is unable to provide pro-rata financing for any of the budget lines (with the exception of staff costs (item 1) which can be covered on a percentage basis, or costs that fall under the cost category ‘Pro-rata local project costs’ (item 7)). Costs that are incurred as part of the implementation of the project but are not funded by GIZ are calculated separately - either as own contribution or, if applicable, as financial contribution of a third party. | L5: =IF(L4="VE","PLEASE NOTE: GIZ cannot cover any costs that arise as a result of currency fluctuations.","") -> 
E6: people | G6: months | I6: =ROUND(D6*F6*H6,2) -> 0.00 | L6: No change
E7: people | G7: months | I7: =ROUND(D7*F7*H7,2) -> 0.00 | L7: No change
E8: people | G8: months | I8: 0.00 | L8: No change
E9: people | G9: months | I9: 0.00 | L9: No change
E10: people | G10: months | I10: =ROUND(D10*F10*H10,2) -> 0.00 | L10: No change
E11: people | G11: months | I11: 0.00 | L11: No change
E12: people | G12: months | I12: 0.00 | L12: No change
E13: people | G13: months | I13: 0.00 | L13: No change
E14: people | G14: months | I14: 0.00 | L14: No change
E15: people | G15: months | I15: 0.00 | L15: No change
E16: people | G16: months | I16: 0.00 | L16: No change
E17: people | G17: months | I17: 0.00 | L17: No change
E18: people | G18: months | I18: 0.00 | L18: No change
E19: people | G19: months | I19: 0.00 | L19: No change
E20: people | G20: months | I20: =ROUND(D20*F20*H20,2) -> 0.00 | L20: No change
E21: people | G21: months | I21: 0.00 | L21: No change
E22: people | G22: months | I22: 0.00 | L22: No change
E23: people | G23: months | I23: 0.00 | L23: No change
E24: people | G24: months | I24: 0.00 | L24: No change
E25: people | G25: months | I25: 0.00 | L25: No change
E26: people | G26: months | I26: 0.00 | L26: No change
E27: people | G27: months | I27: 0.00 | L27: No change
E28: people | G28: months | I28: 0.00 | L28: No change
E29: people | G29: months | I29: 0.00 | L29: No change
E30: people | G30: months | I30: 0.00 | L30: No change
E31: people | G31: months | I31: 0.00 | L31: No change
E32: people | G32: months | I32: 0.00 | L32: No change
E33: people | G33: months | I33: 0.00 | L33: No change
E34: people | G34: months | I34: 0.00 | L34: No change
E35: people | G35: months | I35: 0.00 | L35: No change
E36: people | G36: months | I36: 0.00 | L36: No change
E37: people | G37: months | I37: 0.00 | L37: No change
E38: people | G38: months | I38: 0.00 | L38: No change
E39: people | G39: months | I39: 0.00 | L39: No change
E40: people | G40: months | I40: 0.00 | L40: No change
E41: people | G41: months | I41: 0.00 | L41: No change
E42: people | G42: months | I42: 0.00 | L42: No change
A43: 2 | B43: External services (type/content of service) | D43: =IF('Key data'!C20="yes",CONCATENATE("Tooltip:",Example!O11),"") ->  | I43: =SUM(I44:I72) -> 0.00
E44: Contract | I44: =ROUND(D44*H44,2) -> 0.00 | L44: No change
E45: Contract | I45: =ROUND(D45*H45,2) -> 0.00 | L45: No change
E46: Contract | I46: =ROUND(D46*H46,2) -> 0.00 | L46: No change
E47: Contract | I47: =ROUND(D47*H47,2) -> 0.00 | L47: No change
E48: Contract | I48: 0.00 | L48: No change
E49: Contract | I49: =ROUND(D49*H49,2) -> 0.00 | L49: No change
E50: Contract | I50: 0.00 | L50: No change
E51: Contract | I51: 0.00 | L51: No change
E52: Contract | I52: 0.00 | L52: No change
E53: Contract | I53: 0.00 | L53: No change
E54: Contract | I54: 0.00 | L54: No change
E55: Contract | I55: 0.00 | L55: No change
E56: Contract | I56: 0.00 | L56: No change
E57: Contract | I57: 0.00 | L57: No change
E58: Contract | I58: 0.00 | L58: No change
E59: Contract | I59: 0.00 | L59: No change
E60: Contract | I60: 0.00 | L60: No change
E61: Contract | I61: 0.00 | L61: No change
E62: Contract | I62: 0.00 | L62: No change
E63: Contract | I63: 0.00 | L63: No change
E64: Contract | I64: 0.00 | L64: No change
E65: Contract | I65: 0.00 | L65: No change
E66: Contract | I66: 0.00 | L66: No change
E67: Contract | I67: 0.00 | L67: No change
E68: Contract | I68: 0.00 | L68: No change
E69: Contract | I69: 0.00 | L69: No change
E70: Contract | I70: 0.00 | L70: No change
E71: Contract | I71: 0.00 | L71: No change
E72: Contract | I72: 0.00 | L72: No change
A73: 3 | B73: Transportation/travel costs | D73: =IF('Key data'!C20="yes",CONCATENATE("Tooltip:",Example!O22),"") ->  | I73: =SUM(I74:I91) -> 0.00
I74: =ROUND(D74*H74,2) -> 0.00 | L74: No change
I75: =ROUND(D75*H75,2) -> 0.00 | L75: No change
I76: =ROUND(D76*H76,2) -> 0.00 | L76: No change
I77: 0.00 | L77: No change
I78: 0.00 | L78: No change
I79: 0.00 | L79: No change
I80: 0.00 | L80: No change
I81: 0.00 | L81: No change
I82: 0.00 | L82: No change
I83: 0.00 | L83: No change
I84: 0.00 | L84: No change
I85: 0.00 | L85: No change
I86: 0.00 | L86: No change
I87: 0.00 | L87: No change
I88: =ROUND(D88*H88,2) -> 0.00 | L88: No change
I89: 0.00 | L89: No change
I90: 0.00 | L90: No change
I91: 0.00 | L91: No change
A92: 4 | B92: Procurement of materials and equipment | D92: =IF('Key data'!C20="yes",CONCATENATE("Tooltip:",Example!O34),"") ->  | I92: =SUM(I93:I108) -> 0.00
I93: =ROUND(D93*H93,2) -> 0.00 | L93: No change
I94: =ROUND(D94*H94,2) -> 0.00 | L94: No change
I95: 0.00 | L95: No change
I96: =ROUND(D96*H96,2) -> 0.00 | L96: No change
I97: 0.00 | L97: No change
I98: 0.00 | L98: No change
I99: 0.00 | L99: No change
I100: 0.00 | L100: No change
I101: 0.00 | L101: No change
I102: 0.00 | L102: No change
I103: 0.00 | L103: No change
I104: 0.00 | L104: No change
I105: 0.00 | L105: No change
I106: 0.00 | L106: No change
I107: 0.00 | L107: No change
I108: 0.00 | L108: No change
A109: 5 | B109: Other costs/consumables | D109: =IF('Key data'!C20="yes",CONCATENATE("Tooltip:",Example!O45),"") ->  | I109: =SUM(I110:I125) -> 0.00
I110: =ROUND(D110*F110*H110,2) -> 0.00 | L110: No change
I111: =ROUND(D111*F111*H111,2) -> 0.00 | L111: No change
I112: 0.00 | L112: No change
I113: 0.00 | L113: No change
I114: =ROUND(D114*F114*H114,2) -> 0.00 | L114: No change
I115: 0.00 | L115: No change
I116: 0.00 | L116: No change
I117: 0.00 | L117: No change
I118: 0.00 | L118: No change
I119: 0.00 | L119: No change
I120: 0.00 | L120: No change
I121: 0.00 | L121: No change
I122: 0.00 | L122: No change
I123: 0.00 | L123: No change
I124: 0.00 | L124: No change
I125: 0.00 | L125: No change
A126: 6 | B126: Funds for direct support of third-party beneficiaries (Note: This budget line should preferably cover in-kind contributions, i.e. contribution of materials and equipment, to third-party beneficiaries. In the case of financial contributions, proof of payment has to be regulated. The selection process for the third-party beneficiaries has to be described in the project description.) | D126: =IF('Key data'!C20="yes",CONCATENATE("Tooltip:",Example!O56),"") ->  | I126: =SUM(I127:I136) -> 0.00
I127: =ROUND(D127*F127*H127,2) -> 0.00 | L127: No change
I128: =ROUND(D128*F128*H128,2) -> 0.00 | L128: No change
I129: =ROUND(D129*F129*H129,2) -> 0.00 | L129: No change
I130: 0.00 | L130: No change
I131: 0.00 | L131: No change
I132: 0.00 | L132: No change
I133: =ROUND(D133*F133*H133,2) -> 0.00 | L133: No change
I134: =ROUND(D134*F134*H134,2) -> 0.00 | L134: No change
I135: 0.00 | L135: No change
I136: 0.00 | L136: No change
A137: 7 | B137: Pro-rata local project costs (e.g. IT, research) | D137: =IF('Key data'!C20="yes",CONCATENATE("Tooltip:",Example!O61),"") ->  | I137: =SUM(I138:I142) -> 0.00
I138: =ROUND(D138*F138*H138,2) -> 0.00 | L138: No change
I139: =ROUND(D139*F139*H139,2) -> 0.00 | L139: No change
I140: =ROUND(D140*F140*H140,2) -> 0.00 | L140: No change
I141: =ROUND(D141*F141*H141,2) -> 0.00 | L141: No change
I142: =ROUND(D142*F142*H142,2) -> 0.00 | L142: No change
B143: Subtotal – direct costs | I143: =I109+I92+I43+I5+I73+I126 -> 0.00
A144: 8 | B144: Administration costs | D144: =IF('Key data'!C20="yes",CONCATENATE("Tooltip:",Example!O65),"") ->  | I144: =I145 -> 0.00
B145: Administration costs (on budget lines 1-7) | D145: 0.00% | H145: =I143 -> 0.00 € | I145: =D145*H145 -> 0.00 | L145: No change
B146: Subtotal – GIZ funding (up to – upon provision of evidence)* (direct costs + administration costs) | I146: =I143+I144 -> 0.00
B147: GIZ funding (up to – upon provision of evidence)* | I147: =I146 -> 0.00 €
B149: *All budget lines (with the exception of administration costs and pro-rata local project costs) are settled upon provision of evidence.
B151: Please note: In cases where GIZ funding is to be provided for the award of contracts for external services and/or materials and equipment and/or goods, the relevant procurement guidelines must be observed in accordance with the contractual provisions.
B153: No income may be generated from the funds provided! For example, where the recipient provides rooms for training, etc., the costs may not be settled under this contract.
B155: For contract supplements: Please adjust the budget based on the most recently agreed budget and highlight any changes in a different colour. GIZ cannot cover any costs that arise as a result of currency fluctuations.

Sheet Example
A1: Estimated Budget – Annex 1 | J1: ='Key data'!C33 -> 00:00:00 | O1: Instructions: This is merely intended to provide guidance in filling out the ‘Financing budget’ tab.
B3: Description | C3: Code | D3: Quantity | E3: Unit (e.g. person, vehicle, room) | F3: Quantity | G3: Unit (e.g. months, days, courses) | H3: Eligible for support up to in EUR (price per unit) | I3: Total GIZ contribution in EUR (up to) | J3: Own contributions/third-party financing in EUR (up to) | O3: General information: This budget format is used as a basis for settlement. You may create additional files with more detailed information for your own internal use. All items listed in the budget must be included in the project description to ensure that the project reference is clear. The table contains formulas that must be retained. Please keep the two-decimal-place format. We advise rounding up units to the nearest full unit. Costs are agreed at a value of ‘up to’.
B4: Note: Blue fields to be filled in by the recipient | I4: Note: calculated automatically | O4: Notes on filling out the table
A5: 1 | B5: Staff - prime cost for employees of the Recipient (job title) (Note 1: Only staff from your organisations; the evidence for this budget line must be provided in the form of payslips or, in the case of partial financing, in the form of payslips and time sheets. Note 2: Only direct costs for staff (gross cost for the employer) may be settled. Add-ons such as staff overheads that are calculated pro-rata for staff are not eligible for support) | I5: =SUM(I6:I10) -> 94,000.00 | J5: GIZ is unable to provide pro-rata financing for any of the budget lines (with the exception of staff costs (item 1) which can be covered on a percentage basis, or costs that fall under the cost category ‘Pro-rata local project costs’ (item 7)). Costs that are incurred as part of the implementation of the project but are not funded by GIZ are calculated separately - either as own contribution or, if applicable, as financial contribution of a third party. | O5: The column ‘Eligible for support up to’ should always display the gross cost for the employer, which is laid down in the employment contract. For part-time positions, enter the percentage in column D. Please state the statutory ancillary personnel costs that apply for your country. As a general rule, social contributions are eligible for funding, as are payments that have been agreed in an employment contract or under a collective bargaining agreement (with the exception of bonus and profit-sharing payments). Any ancillary costs that do not fall under this category must be discussed and agreed, reviewed and noted in the budget line before the contract is prepared. Contracts for ‘mini-jobs’ or for students on temporary work are to be allocated to staff costs, even if no social contributions are incurred in this context. If funding is to be provided for several people on a pro-rata basis (e.g. three people working 75%), please increase the number of months as required and enter the number of people in the budget line description.
B6: Project manager | D6: 100% | E6: people | F6: 20 | G6: months | H6: 3,000.00 | I6: =D6*F6*H6 -> 60,000.00
B7: Financial manager | D7: 50% | E7: people | F7: 20 | G7: months | H7: 2,200.00 | I7: =D7*F7*H7 -> 22,000.00
B8: Severance payments / statutory accruals | D8: 100% | E8: people | F8: 20 | G8: months | H8: 600.00 | I8: 12,000.00
E9: people | G9: months | I9: 0.00
E10: people | G10: months | I10: 0.00
A11: 2 | B11: External services (type/content of service) | I11: =SUM(I12:I21) -> 7,000.00 | O11: Enter the role title; no contract details (e.g. working hours); only state the number of contracts and the planned value (the relevant guidelines governing contracts awards must be observed); one budget line should be used for each contract; all costs (such as training, business trips) incurred as part of service delivery under a service contract are displayed in one budget line. Events: Services provided by the same provider should be displayed in one budget line. (e.g.: if a hotel provides both catering and the venue, these costs belong in a single budget line; if another hotel is booked for accommodation, then these costs belong in a separate line). Any items for which the recipient receives income when running the event cannot be financed under the contract (e.g. rental for rooms on own premises). Funding can only be provided for costs for which evidence can actually be provided.
B12: Moderation services | D12: 1 | E12: Contract | H12: 5,000.00 | I12: =D12*H12 -> 5,000.00
B13: Catering and room rental | D13: 1 | E13: Contract | H13: 2,000.00 | I13: =D13*H13 -> 2,000.00
B14: Solar technology expert | E14: Contract | I14: 0.00
B15: Expert for… | E15: Contract | I15: 0.00
B16: External workers (not in an employment relationship with recipient that is subject to social insurance contributions) | E16: Contract | I16: 0.00
B17: Consultancy assignments | E17: Contract | I17: 0.00
B18: External companies, e.g. for bus transport | E18: Contract | I18: 0.00
E19: Contract | I19: 0.00
E20: Contract | I20: 0.00
E21: Contract | I21: 0.00
A22: 3 | B22: Transportation/travel costs | I22: =SUM(I23:I31) -> 4,500.00 | O22: Travel costs usually include all types of transportation, accommodation, per-diem allowances and visa charges. List all other costs separately. Costs are settled based on invoices and/or the recipient’s travel expense guidelines and/or statutory provisions, such as the Federal Travel Expenses Act (BRKG). You should not break down the costs for different into groups of people. Please do not enter the number of flights - any deviations must be covered by a contract supplement, and the number of flights will be checked should an audit be carried out.
B23: International flights | D23: 1 | E23: Unit | H23: 4,000.00 | I23: =D23*H23 -> 4,000.00
B24: Domestic flights | D24: 1 | E24: Unit | H24: 500.00 | I24: =D24*H24 -> 500.00
B25: International travel costs (per-diem/overnight accommodation allowance, means of transport, visa, required vaccinations) | I25: 0.00
B26: Domestic travel costs (per-diem/overnight accommodation allowance, means of transport) | I26: 0.00
B27: Transportation costs for goods | I27: 0.00
B28: Travel costs for workshop participants | I28: 0.00
I29: 0.00
I30: =D30*F30*H30 -> 0.00
I31: 0.00
A34: 4 | B34: Procurement of materials and equipment | I34: =SUM(I35:I44) -> 4,000.00 | O34: Any procured goods that are included in a single invoice should be displayed in one budget line. For example, you can list IT equipment in one budget line. In this case, you should specify in brackets what goods are likely to be procured. You must provide additional details for medicines and pesticides and mineral fertilizers as their procurement is subject to approval.
B35: IT equipment (laptops, printers, overhead projectors, accessories) | D35: 1 | E35: Procurement | H35: 4,000.00 | I35: =D35*H35 -> 4,000.00
B36: Photographic equipment (camera and accessories) | I36: =D36*H36 -> 0.00
B37: XY machine (specify the machine – not a particular company or model) | I37: 0.00
B38: Furniture (desks, chairs, cupboards) | I38: 0.00
B39: Vehicles, specify type: e.g. electric car, armoured SUV, electric scooter | I39: 0.00
B40: Mobile phones | I40: 0.00
I41: 0.00
I42: 0.00
I43: 0.00
I44: 0.00
A45: 5 | B45: Other costs/consumables | I45: =SUM(I46:I55) -> 100.00 | O45: Please note that indirect costs are classed as administration costs. Only direct costs can be budgeted as individual budget lines. For rental costs, only direct costs, i.e. basic rent exclusive of ancillary costs, can be calculated. Include ancillary costs as indirect costs, i.e. as administration costs. Unlike procured goods, which are used over a long period of time, consumables are commodities that are used up, e.g. ink cartridges or printer paper.
B46: Office materials (printer paper, ink cartridges, stationery) | D46: 1 | E46: Unit | H46: 100.00 | I46: =D46*H46 -> 100.00
B47: IT software, licenses | I47: =D47*H47 -> 0.00
B48: Packaging material for xxx | I48: 0.00
B49: Laboratory equipment and materials | I49: 0.00
B50: Hygiene products | I50: 0.00
B51: Tools | I51: 0.00
B52: Water | I52: 0.00
B53: Flyers/advertising materials | I53: 0.00
B54: Phone costs, phone cards, etc | I54: 0.00
I55: 0.00
A56: 6 | B56: Funds for direct support of third-party beneficiaries (Note: This budget line should preferably cover in-kind contributions, i.e. contribution of materials and equipment, to third-party beneficiaries. In the case of financial contributions, proof of payment has to be regulated. The selection process for the third-party beneficiaries has to be described in the project description.) | I56: =SUM(I57:I60) -> 600.00 | O56: Please take note of the information provided in the budget line. The provision of evidence must be agreed and indicated in the budget. The selection criteria are to be explained in the project description. NB: In this context, the term ‘third-party beneficiaries’ refers solely to individuals/entities that benefit from the recipient’s project. This includes start-up funding, funding for initiatives, cash-for-work, funding competitions, grants, etc. Arrangements on the provision of evidence must be agreed. You will need to contact the Contract Management Section for advice on specific details.
B57: Cash-for-work (settled against provision of lists of paticipants, confirmation of receipt by signature or fingerprint; selection process is described on page X of the project description) | D57: 10 | E57: people | F57: 20 | G57: days | H57: 3.00 | I57: =D57*F57*H57 -> 600.00
I58: =D58*F58*H58 -> 0.00
I59: 0.00
I60: 0.00
A61: 7 | B61: Pro-rata local project costs (e.g. IT, research) | I61: =SUM(I62:I63) -> 0.00 | O61: This budget line is for big international organizations, who – most of the time – have an allocation of certain costs to the exact project (pro-rata costs). So it still refers to direct costs but there is a calculation needed to understand the relation to the financed project – e.g. the IT costs for the project are calculated with 5%.This was formerly known as Shared-office-costs. In such cases we need an auditor’s report, before signing the contract, to verify the percentage or lumpsum allocated to the financed project.
E62: % | G62: Unit | I62: =D62*F62*H62 -> 0.00
E63: Lump sum | G63: Per month | I63: =D63*F63*H63 -> 0.00
B64: Subtotal – direct costs | I64: =I45+I34+I11+I5+I22+I56 -> 110,200.00
A65: 8 | B65: Administration costs | I65: =I66 -> 5,510.00 | O65: The administration costs should be 0% and are normally covered by the recipient’s own contribution. GIZ can cover a small portion of such costs in cases where the recipient is unable to do so. The type and amount of these costs may be examined by an auditor. The contract management section must be informed if the administration costs do not pertain to all budget lines 1-7.
B66: Administration costs (on budget lines 1-7) | D66: 5% | H66: =I64 -> 110,200.00 | I66: =D66*H66 -> 5,510.00
B67: Subtotal – Funding by GIZ (up to – upon provision of evidence)* (direct costs + administration costs) | I67: =I64+I65 -> 115,710.00
A68: 9 | B68: Forwarding of funds to third-party recipients – a detailed budget must be provided | O68: These are third-party recipients (co-implementation partners) that independently implement part of the project. A separate budget must be submitted and a commercial and legal eligibility check carried out by the GIZ project (sole criteria: legal entity and public-benefit nature).
B69: OPQ | D69: 1 | E69: Unit | F69: 1 | G69: Forwarding of funds | H69: 10,000.00 | I69: =D69*F69*H69 -> 10,000.00 €
B70: XYZ (name of the third-party recipient) | D70: 1 | E70: Unit | F70: 1 | G70: Forwarding of funds | I70: =D70*F70*H70 -> 0.00 €
B71: XYZ (name of the third-party recipient) | D71: 1 | E71: Unit | F71: 1 | G71: Forwarding of funds | I71: 0.00 € | K71: Anteile in Prozent
B72: GIZ funding (up to – upon provision of evidence)* | I72: =I67 -> 115,710.00 € | J72: =I72 -> 115,710.00 € | K72: =J72/$I$78 -> 88.52%
A73: =10 -> 10 | B73: Own Contributions/third-party financing | J73: =SUM(J74:J76) -> 15,000.00 | O73: Only enter the overall value of own contibutions/the third-party financing. Include a brief outline of the proportional financing in the project description.
B74: ABC (own contribution) | D74: 1 | E74: Unit | F74: 1 | G74: Contribution | H74: 5,000.00 | J74: =H74 -> 5,000.00 | K74: =J74/$I$78 -> 3.83%
B75: DEF (third-party financing) | D75: 1 | E75: Unit | F75: 1 | G75: Contribution | H75: 10,000.00 | J75: =H75 -> 10,000.00 | K75: 7.65%
D76: 1 | E76: Unit | F76: 1 | G76: Contribution | K76: =IFERROR(J76/$I$78,"") -> 0.00%
D77: 1 | E77: Unit | F77: 1 | G77: Contribution | K77: =IFERROR(J77/$I$78,"") -> 0.00%
B78: Total financing | I78: =I72+J73 -> 130,710.00 € | K78: =SUM(K72:K77) -> 100.00%
B80: *All budget lines (with the exception of administration costs and pro-rata local project costs) are settled upon provision of evidence.
B82: Please note: In cases where GIZ funding is to be provided for the award of contracts for external services and/or materials and equipment and/or goods, the relevant procurement guidelines must be observed in accordance with the contractual provisions.
B85: No income may be generated from the funds provided. For example, where the recipient provides rooms for training, etc., the costs may not be settled through this contract.
B88: For contract supplements: Please adjust the budget based on the most recently agreed budget and highlight any changes in a different colour. GIZ cannot cover any costs that arise as a result of currency fluctuations. | O88: Explain the re-allocation of budget funds in the request to modify a contract. A reason must be given particularly in cases where staff costs have increased.
